[Event "Irish International Open 2019"]
[Site "Dublin"]
[Date "2019.04.19"]
[Round "4.6"]
[White "Jackson, James P"]
[Black "Moran, Stephen"]
[Result "1-0"]
[ECO "C11"]
[WhiteElo "2388"]
[BlackElo "2165"]
[Annotator "NA"]
[PlyCount "53"]
[EventDate "2019.02.28"]
[EventType "swiss"]
[EventCountry "IRL"]
[SourceTitle "playchess.com"]
[Source "ChessBase"]
[SourceQuality "1"]
[TimeControl "5400+30"]

1. e4 {[%emt 0:00:00]} e6 {[%emt 0:00:00]} 2. d4 {[%emt 0:00:00]} d5 {[%emt 0:00:00]} 3. Nc3 {[%emt 0:00:00]} Nf6 {[%emt 0:00:15]} 4. e5 {[%emt 0:00:03]} Nfd7 {[%emt 0:00:05]} 5. f4 {[%emt 0:00:04]} c5 {[%emt 0:00:06]} 6. Nf3 {[%emt 0:00:05]} Nc6 {[%emt 0:00:06]} 7. Be3 {[%emt 0:00:04]} Be7 {[%emt 0:01:47]} 8. Qd2 {[%emt 0:00:25]} O-O {[%emt 0:00:54]} 9. dxc5 {[%emt 0:00:21]} Qa5 {[%emt 0:03:17]} 10. O-O-O {[%emt 0:01:41]} b6 {[%emt 0:03:14]} 11. Bb5 {[%emt 0:01:41]} Nb4 {[%emt 0:02:37]} 12. a3 {[%emt 0:00:31]} bxc5 {[%emt 0:01:14]} 13. Kb1 {[%emt 0:01:07]} Nb6 {[%emt 0:00:57]} 14. f5 {[%emt 0:03:20]} d4 {[%emt 0:17:41]} 15. axb4 {[%emt 0:00:31]} cxb4 {[%emt 0:00:26]} 16. Nxd4 {[%emt 0:01:09]} bxc3 {[%emt 0:00:53]} 17. Qe2 {[%emt 0:01:19]} Bb7 {[%emt 0:42:03]} 18. Nb3 {[%emt 0:00:20]} Qb4 {[%emt 0:01:57]} 19. Rd4 {[%emt 0:00:11]} Nd5 {[%emt 0:02:40]} 20. Rxb4 {[%emt 0:00:39]} Bxb4 {[%emt 0:00:05]} 21. Bc4 {[%emt 0:12:38]} a5 {[%emt 0:01:00]} 22. Bxd5 {[%emt 0:07:18]} Bxd5 {[%emt 0:00:07]} 23. bxc3 {[%emt 0:00:15]} Bxc3 {[%emt 0:00:27]} 24. Bd2 {[%emt 0:02:48]} a4 $18 {[%emt 0:02:23]} 25. Bxc3 {[%emt 0:00:07]} Rfb8 {[%emt 0:00:11]} 26. Bb2 {[%emt 0:05:50]} axb3 {[%emt 0:00:16]} 27. c4 {[%emt 0:00:07]} 1-0

[Event "Irish International Open 2019"]
[Site "Dublin"]
[Date "2019.04.19"]
[Round "4.7"]
[White "Longson, Alexander"]
[Black "Murphy, Sean"]
[Result "*"]
[ECO "D12"]
[WhiteElo "2318"]
[BlackElo "1976"]
[Annotator "NA RC"]
[PlyCount "115"]
[EventDate "2019.02.28"]
[EventType "swiss"]
[EventCountry "IRL"]
[SourceTitle "playchess.com"]
[Source "ChessBase"]
[SourceQuality "1"]
[TimeControl "5400+30"]

1. Nf3 {[%emt 0:00:00]} d5 {[%emt 0:00:11]} 2. d4 {[%emt 0:00:22]} Nf6 {[%emt 0:00:07]} 3. c4 {[%emt 0:00:20]} c6 {[%emt 0:00:09]} 4. e3 {[%emt 0:03:26]} Bf5 {[%emt 0:00:08]} 5. Nc3 {[%emt 0:00:31]} e6 {[%emt 0:00:13]} 6. Be2 {[%emt 0:00:26]} dxc4 {[%emt 0:01:57]} 7. Bxc4 {[%emt 0:01:04]} b5 {[%emt 0:04:59]} 8. Be2 {[%emt 0:02:29]} b4 {[%emt 0:03:19]} 9. Na4 {[%emt 0:05:57]} Nbd7 {[%emt 0:01:58]} 10. O-O {[%emt 0:03:25]} Be7 {[%emt 0:00:32]} 11. Nh4 {[%emt 0:07:41]} Be4 {[%emt 0:00:22]} 12. f3 {[%emt 0:01:16]} Bg6 {[%emt 0:00:17]} 13. Nxg6 {[%emt 0:05:22]} hxg6 {[%emt 0:00:22]} 14. e4 {[%emt 0:00:20]} O-O {[%emt 0:04:19]} 15. Be3 {[%emt 0:02:39]} Qa5 {[%emt 0:04:45]} 16. b3 {[%emt 0:13:56]} Rfd8 {[%emt 0:06:42]} 17. Qd3 {[%emt 0:09:52]} a6 {[%emt 0:09:19]} 18. Rfd1 {[%emt 0:00:22]} c5 {[%emt 0:01:23]} 19. Rac1 {[%emt 0:03:04]} cxd4 {[%emt 0:04:35]} 20. Qxd4 {[%emt 0:00:24]} Nc5 {[%emt 0:03:10]} 21. Rxc5 {[%emt 0:01:48]} Bxc5 {[%emt 0:00:51]} 22. Qxc5 {[%emt 0:00:13]} Rxd1+ {[%emt 0:00:36]} 23. Bxd1 {[%emt 0:00:06]} Qd8 {[%emt 0:03:43]} 24. Be2 {[%emt 0:01:09]} Rc8 {[%emt 0:00:54]} 25. Qd4 {[%emt 0:08:32]} Qe7 {[%emt 0:13:36]} 26. Bxa6 {[%emt 0:01:27]} Rd8 {[%emt 0:01:18]} 27. Qa1 {[%emt 0:05:13]} g5 {[%emt 0:02:20]} 28. Be2 {[%emt 0:02:58]} g4 {[%emt 0:01:40]} 29. Nc5 {[%emt 0:03:33]} gxf3 {[%emt 0:01:18]} 30. gxf3 {[%emt 0:00:03]} Rc8 {[%emt 0:01:13]} 31. Qe5 {[%emt 0:08:18]} Ra8 {[%emt 0:03:05]} 32. Qb2 {[%emt 0:01:03]} Rc8 {[%emt 0:03:57]} 33. Nd3 {[%emt 0:00:24]} Nh5 {[%emt 0:05:08]} 34. Qd2 {[%emt 0:01:01]} Qh4 {[%emt 0:02:51]} 35. Bg5 {[%emt 0:03:00]} Rc2 {[%emt 0:01:17]} 36. Qxc2 {[%emt 0:01:00]} Qxg5+ {[%emt 0:00:02]} 37. Kf1 {[%emt 0:01:11]} Qh4 {[%emt 0:01:39]} 38. Bd1 {[%emt 0:00:16]} g6 {[%emt 0:04:09]} 39. Qd2 {[%emt 0:00:51]} e5 {[%emt 0:00:16]} 40. Kg2 {[%emt 0:01:23]} Qd8 {[%emt 0:00:12]} 41. Be2 {[%emt 0:01:12]} Qd4 {[%emt 0:01:04]} 42. Qc1 {[%emt 0:00:45]} Kh7 {[%emt 0:00:35]} 43. Kf1 {[%emt 0:00:24]} Qd7 {[%emt 0:01:23]} 44. Qc5 {[%emt 0:00:40]} Qh3+ {[%emt 0:01:39]} 45. Kg1 {[%emt 0:00:02]} f6 {[%emt 0:01:13]} 46. Qe7+ {[%emt 0:00:39]} Kh6 {[%emt 0:00:01]} 47. Qf8+ {[%emt 0:00:09]} Kg5 {[%emt 0:00:31]} 48. Qxb4 {[%emt 0:00:19]} Qd7 {[%emt 0:02:24]} 49. Qc5 {[%emt 0:01:22]} Kh6 {[%emt 0:00:43]} 50. a4 {[%emt 0:00:56]} Ng7 {[%emt 0:00:09]} 51. Qd5 {[%emt 0:01:27]} Qc7 {[%emt 0:00:20]} 52. Qc4 {[%emt 0:00:44]} Qb6+ {[%emt 0:00:20]} 53. Kf1 {[%emt 0:00:16]} Ne6 {[%emt 0:00:28]} 54. a5 {[%emt 0:00:27]} Qd6 {[%emt 0:00:01]} 55. Qd5 {[%emt 0:00:37]} Qe7 {[%emt 0:00:25]} 56. a6 {[%emt 0:00:41]} Nd4 {[%emt 0:00:02]} 57. f4 {[%emt 0:00:38]} Qa3 {[%emt 0:01:20]} 58. Qg8 {[%emt 0:00:21]} *

[Event "Irish International Open 2019"]
[Site "Dublin"]
[Date "2019.04.19"]
[Round "4.8"]
[White "Melaugh, Gavin"]
[Black "De Verdier, Michael"]
[Result "0-1"]
[ECO "A40"]
[WhiteElo "2109"]
[BlackElo "2306"]
[Annotator "NA"]
[PlyCount "90"]
[EventDate "2019.02.28"]
[EventType "swiss"]
[EventCountry "IRL"]
[SourceTitle "playchess.com"]
[Source "ChessBase"]
[SourceQuality "1"]
[TimeControl "5400+30"]

1. c4 {[%emt 0:01:46]} b6 {[%emt 0:00:00]} 2. Nc3 {[%emt 0:00:16]} Bb7 {[%emt 0:00:07]} 3. d4 {[%emt 0:00:21]} e6 {[%emt 0:00:16]} 4. e4 {[%emt 0:00:13]} Bb4 {[%emt 0:00:08]} 5. Qc2 {[%emt 0:00:28]} Qh4 {[%emt 0:01:18]} 6. Bd3 {[%emt 0:23:04]} f5 {[%emt 0:01:07]} 7. Nf3 {[%emt 0:03:56]} Bxc3+ {[%emt 0:00:24]} 8. Qxc3 {[%emt 0:10:47]} Qg4 {[%emt 0:02:52]} 9. O-O {[%emt 0:26:31]} fxe4 {[%emt 0:02:25]} 10. h3 {[%emt 0:07:16]} Qh5 {[%emt 0:22:39]} 11. d5 {[%emt 0:00:15]} Nf6 {[%emt 0:01:29]} 12. Bxe4 {[%emt 0:00:33]} O-O {[%emt 0:05:54]} 13. Bc2 {[%emt 0:05:19]} exd5 {[%emt 0:02:04]} 14. Nd4 {[%emt 0:01:53]} dxc4 {[%emt 0:10:48]} 15. Qxc4+ {[%emt 0:00:50]} Qd5 {[%emt 0:01:33]} 16. Qxd5+ {[%emt 0:00:07]} Bxd5 {[%emt 0:01:13]} 17. Bf4 {[%emt 0:02:04]} c5 {[%emt 0:03:45]} 18. Nb5 {[%emt 0:06:25]} Ne8 {[%emt 0:03:08]} 19. Bxb8 {[%emt 0:04:52]} Rxb8 {[%emt 0:01:16]} 20. Nxa7 {[%emt 0:00:13]} b5 {[%emt 0:08:30]} 21. Rfd1 {[%emt 0:01:15]} Be6 {[%emt 0:00:38]} 22. a4 {[%emt 0:00:52]} bxa4 {[%emt 0:01:17]} 23. Rxa4 {[%emt 0:01:38]} Rxb2 {[%emt 0:00:38]} 24. Be4 {[%emt 0:00:32]} Bb3 {[%emt 0:04:04]} 25. Bd5+ {[%emt 0:00:02]} Bxd5 {[%emt 0:00:06]} 26. Rxd5 {[%emt 0:00:02]} Rfxf2 {[%emt 0:00:30]} 27. Rg5 {[%emt 0:01:11]} h6 {[%emt 0:01:00]} 28. Rg6 {[%emt 0:00:36]} Kh7 {[%emt 0:01:37]} 29. Rag4 {[%emt 0:00:05]} Rf6 {[%emt 0:00:33]} 30. Rxf6 {[%emt 0:00:10]} Nxf6 {[%emt 0:00:04]} 31. Rc4 {[%emt 0:00:09]} Rb1+ {[%emt 0:00:29]} 32. Kh2 {[%emt 0:00:08]} Rb7 {[%emt 0:02:06]} 33. Nc8 {[%emt 0:00:12]} Rc7 {[%emt 0:00:12]} 34. Nd6 {[%emt 0:00:41]} Rc6 {[%emt 0:00:20]} 35. Nb7 {[%emt 0:00:30]} d6 {[%emt 0:00:06]} 36. g4 {[%emt 0:00:44]} Rb6 {[%emt 0:01:10]} 37. Na5 {[%emt 0:01:36]} Rb5 {[%emt 0:02:33]} 38. Nc6 {[%emt 0:00:02]} d5 {[%emt 0:00:56]} 39. Rf4 {[%emt 0:01:04]} Rb2+ {[%emt 0:00:22]} 40. Kg1 {[%emt 0:00:24]} c4 {[%emt 0:00:38]} 41. Ne5 {[%emt 0:00:47]} c3 {[%emt 0:01:33]} 42. Nd3 {[%emt 0:00:24]} Rd2 {[%emt 0:01:00]} 43. Ne1 {[%emt 0:00:32]} c2 {[%emt 0:01:02]} 44. Nxc2 {[%emt 0:00:16]} Rxc2 {[%emt 0:00:02]} 45. Rd4 {[%emt 0:00:16]} Kg6 {[%emt 0:00:19]} 0-1

[Event "Irish International Open 2019"]
[Site "Dublin"]
[Date "2019.04.19"]
[Round "4.10"]
[White "McMorrow, John"]
[Black "Fitzsimons, David"]
[Result "1-0"]
[ECO "B09"]
[WhiteElo "2058"]
[BlackElo "2299"]
[Annotator "NA"]
[PlyCount "113"]
[EventDate "2019.02.28"]
[EventType "swiss"]
[EventCountry "IRL"]
[SourceTitle "playchess.com"]
[Source "ChessBase"]
[SourceQuality "1"]
[TimeControl "5400+30"]

1. e4 {[%emt 0:00:08]} d6 {[%emt 0:00:00]} 2. d4 {[%emt 0:00:07]} Nf6 {[%emt 0:00:00]} 3. Nc3 {[%emt 0:00:08]} g6 {[%emt 0:00:00]} 4. f4 {[%emt 0:00:15]} Bg7 {[%emt 0:00:05]} 5. Nf3 {[%emt 0:00:17]} O-O {[%emt 0:00:14]} 6. Bd3 {[%emt 0:00:42]} Nc6 {[%emt 0:00:38]} 7. e5 {[%emt 0:01:33]} dxe5 {[%emt 0:00:20]} 8. fxe5 {[%emt 0:00:05]} Nh5 {[%emt 0:00:06]} 9. Be3 {[%emt 0:00:19]} Bg4 {[%emt 0:00:14]} 10. Be2 {[%emt 0:00:16]} f6 {[%emt 0:00:11]} 11. exf6 {[%emt 0:00:23]} exf6 {[%emt 0:00:22]} 12. d5 {[%emt 0:00:27]} Ne7 {[%emt 0:01:55]} 13. Qd2 {[%emt 0:03:58]} Nf5 {[%emt 0:01:42]} 14. Nd4 {[%emt 0:20:42]} Nxe3 {[%emt 0:07:48]} 15. Qxe3 {[%emt 0:00:36]} Re8 {[%emt 0:00:06]} 16. Ne6 {[%emt 0:02:16]} Bxe2 {[%emt 0:01:18]} 17. Kxe2 {[%emt 0:00:46]} Qd6 {[%emt 0:00:34]} 18. Kf3 {[%emt 0:20:11]} c6 {[%emt 0:03:22]} 19. g4 {[%emt 0:21:43]} cxd5 {[%emt 0:00:42]} 20. Nb5 {[%emt 0:07:26]} Qd7 {[%emt 0:13:27]} 21. Nbc7 {[%emt 0:03:45]} Rac8 {[%emt 0:00:33]} 22. Nxe8 {[%emt 0:01:36]} Rxe8 {[%emt 0:00:05]} 23. Rhe1 {[%emt 0:03:26]} Nf4 {[%emt 0:01:23]} 24. Qxf4 {[%emt 0:02:22]} Rxe6 {[%emt 0:00:06]} 25. Rxe6 {[%emt 0:01:29]} Qxe6 {[%emt 0:00:05]} 26. Rd1 {[%emt 0:01:19]} h5 {[%emt 0:00:33]} 27. h3 {[%emt 0:01:04]} Kh7 {[%emt 0:00:29]} 28. Qe3 {[%emt 0:02:36]} hxg4+ {[%emt 0:03:01]} 29. hxg4 {[%emt 0:00:01]} Qc6 {[%emt 0:00:19]} 30. Rh1+ {[%emt 0:03:21]} Kg8 {[%emt 0:00:03]} 31. Qe7 {[%emt 0:00:34]} f5 {[%emt 0:02:34]} 32. gxf5 {[%emt 0:01:00]} gxf5 {[%emt 0:00:07]} 33. Rg1 {[%emt 0:00:54]} Qh6 {[%emt 0:02:00]} 34. Qd8+ {[%emt 0:00:40]} Kh7 {[%emt 0:00:15]} 35. Qxd5 {[%emt 0:00:17]} Qh3+ {[%emt 0:00:16]} 36. Kf2 {[%emt 0:00:11]} Qh4+ {[%emt 0:00:15]} 37. Ke2 {[%emt 0:00:51]} Qh5+ {[%emt 0:00:17]} 38. Qf3 {[%emt 0:00:40]} Qh2+ {[%emt 0:00:24]} 39. Rg2 {[%emt 0:00:06]} Qe5+ {[%emt 0:00:04]} 40. Kd1 {[%emt 0:00:37]} b6 {[%emt 0:01:47]} 41. c3 {[%emt 0:00:33]} a5 {[%emt 0:01:45]} 42. Rf2 {[%emt 0:00:23]} Kg6 {[%emt 0:00:31]} 43. Qc6+ {[%emt 0:00:31]} Kh5 {[%emt 0:01:12]} 44. Qh1+ {[%emt 0:00:45]} Kg6 {[%emt 0:00:16]} 45. Qg2+ {[%emt 0:00:16]} Kf6 {[%emt 0:00:44]} 46. Qc6+ {[%emt 0:00:19]} Kf7 {[%emt 0:00:42]} 47. Qd7+ {[%emt 0:00:16]} Kg6 {[%emt 0:00:13]} 48. Re2 {[%emt 0:00:39]} Qg3 {[%emt 0:01:43]} 49. Qe8+ {[%emt 0:00:29]} Kg5 {[%emt 0:00:30]} 50. Qd8+ {[%emt 0:01:01]} Kh5 {[%emt 0:01:21]} 51. Qe8+ {[%emt 0:00:38]} Kg5 {[%emt 0:00:01]} 52. Qd8+ {[%emt 0:00:03]} Kh5 {[%emt 0:00:01]} 53. Qd2 {[%emt 0:00:28]} Be5 {[%emt 0:01:21]} 54. Qd5 {[%emt 0:00:40]} Qg1+ {[%emt 0:01:57]} 55. Kc2 {[%emt 0:00:16]} Bf4 {[%emt 0:00:17]} 56. Qxf5+ {[%emt 0:00:13]} Kh4 {[%emt 0:00:37]} 57. Qxf4+ {[%emt 0:00:23]} 1-0

[Event "Irish International Open 2019"]
[Site "Dublin"]
[Date "2019.04.19"]
[Round "4.12"]
[White "Daly, Colm"]
[Black "Schmitz, Andreas Arnold"]
[Result "0-1"]
[ECO "C18"]
[WhiteElo "2278"]
[BlackElo "2003"]
[Annotator "NA"]
[PlyCount "140"]
[EventDate "2019.02.28"]
[EventType "swiss"]
[EventCountry "IRL"]
[SourceTitle "playchess.com"]
[Source "ChessBase"]
[SourceQuality "1"]
[TimeControl "5400+30"]

1. e4 {[%emt 0:00:00]} e6 {[%emt 0:00:00]} 2. d4 {[%emt 0:00:50]} d5 {[%emt 0:00:01]} 3. Nc3 {[%emt 0:00:05]} Bb4 {[%emt 0:00:18]} 4. e5 {[%emt 0:00:04]} c5 {[%emt 0:00:11]} 5. a3 {[%emt 0:00:05]} Bxc3+ {[%emt 0:00:08]} 6. bxc3 {[%emt 0:00:04]} Qc7 {[%emt 0:00:18]} 7. Nf3 {[%emt 0:00:51]} Bd7 {[%emt 0:00:16]} 8. a4 {[%emt 0:00:11]} Qa5 {[%emt 0:01:55]} 9. Bd2 {[%emt 0:00:14]} c4 {[%emt 0:00:13]} 10. h4 {[%emt 0:06:13]} h5 {[%emt 0:07:11]} 11. Qb1 {[%emt 0:11:12]} Na6 {[%emt 0:02:05]} 12. Be2 {[%emt 0:06:53]} O-O-O {[%emt 0:14:07]} 13. Qa2 {[%emt 0:00:37]} Nh6 {[%emt 0:07:15]} 14. O-O {[%emt 0:00:36]} Nf5 {[%emt 0:01:30]} 15. Rfe1 {[%emt 0:01:09]} Bc6 {[%emt 0:02:48]} 16. Bf1 {[%emt 0:00:16]} Rd7 {[%emt 0:06:56]} 17. g3 {[%emt 0:03:48]} Kb8 {[%emt 0:02:49]} 18. Bh3 {[%emt 0:00:11]} g6 {[%emt 0:01:00]} 19. Qa3 {[%emt 0:01:02]} Ne7 {[%emt 0:02:24]} 20. Bg5 {[%emt 0:00:32]} Nc8 {[%emt 0:00:14]} 21. Bf6 {[%emt 0:05:09]} Re8 {[%emt 0:01:17]} 22. Ng5 {[%emt 0:16:15]} Nb6 {[%emt 0:00:42]} 23. Re3 {[%emt 0:00:17]} Nc7 {[%emt 0:07:19]} 24. Bg7 {[%emt 0:01:20]} Rg8 {[%emt 0:02:32]} 25. Rf3 {[%emt 0:03:01]} Qxa4 {[%emt 0:02:52]} 26. Qc1 {[%emt 0:06:32]} Qb5 {[%emt 0:03:24]} 27. Bh6 {[%emt 0:00:08]} Na4 {[%emt 0:01:45]} 28. Nxf7 {[%emt 0:02:58]} Qb2 {[%emt 0:05:55]} 29. Qxb2 {[%emt 0:00:22]} Nxb2 {[%emt 0:00:05]} 30. Ng5 {[%emt 0:00:24]} Rh8 {[%emt 0:01:49]} 31. Bf8 {[%emt 0:01:05]} a6 {[%emt 0:02:27]} 32. Bd6 {[%emt 0:03:45]} Rxd6 {[%emt 0:00:20]} 33. exd6 {[%emt 0:00:07]} Nb5 {[%emt 0:00:10]} 34. Nf7 {[%emt 0:02:59]} Rf8 {[%emt 0:00:29]} 35. Kg2 {[%emt 0:00:30]} Nxc3 {[%emt 0:01:36]} 36. Rxc3 {[%emt 0:00:15]} Rxf7 {[%emt 0:00:20]} 37. Bxe6 {[%emt 0:00:10]} Rf6 {[%emt 0:01:30]} 38. Re1 {[%emt 0:00:25]} b5 {[%emt 0:01:06]} 39. Rf3 {[%emt 0:00:09]} Rxf3 {[%emt 0:00:36]} 40. Kxf3 {[%emt 0:00:06]} Na4 {[%emt 0:00:38]} 41. Bh3 {[%emt 0:00:19]} b4 {[%emt 0:00:52]} 42. Kf4 {[%emt 0:01:23]} Nc3 {[%emt 0:01:07]} 43. d7 {[%emt 0:09:37]} Kc7 {[%emt 0:03:50]} 44. Re8 {[%emt 0:01:02]} Bxd7 {[%emt 0:00:37]} 45. Re7 {[%emt 0:00:15]} b3 {[%emt 0:00:48]} 46. cxb3 {[%emt 0:00:16]} cxb3 {[%emt 0:00:18]} 47. Bxd7 {[%emt 0:06:16]} Kd6 {[%emt 0:01:44]} 48. Re1 {[%emt 0:11:42]} Kxd7 {[%emt 0:02:00]} 49. Kg5 {[%emt 0:00:08]} b2 {[%emt 0:01:55]} 50. Kxg6 {[%emt 0:00:08]} b1=Q+ {[%emt 0:01:35]} 51. Rxb1 {[%emt 0:00:03]} Nxb1 {[%emt 0:00:07]} 52. g4 {[%emt 0:00:09]} a5 {[%emt 0:01:59]} 53. gxh5 {[%emt 0:00:14]} a4 {[%emt 0:01:06]} 54. h6 {[%emt 0:00:05]} a3 {[%emt 0:00:03]} 55. h7 {[%emt 0:00:05]} a2 {[%emt 0:00:05]} 56. h8=Q {[%emt 0:00:06]} a1=Q {[%emt 0:00:15]} 57. Qg7+ {[%emt 0:00:39]} Kc6 {[%emt 0:00:43]} 58. h5 {[%emt 0:00:54]} Nc3 {[%emt 0:00:12]} 59. Qf6+ {[%emt 0:01:24]} Kb5 {[%emt 0:00:16]} 60. h6 {[%emt 0:00:22]} Ne4 {[%emt 0:00:15]} 61. Qe5 {[%emt 0:01:47]} Qg1+ {[%emt 0:00:22]} 62. Kf7 {[%emt 0:01:15]} Kc4 {[%emt 0:02:44]} 63. f4 {[%emt 0:00:25]} Qh2 {[%emt 0:01:03]} 64. Kg6 {[%emt 0:00:42]} Qg3+ {[%emt 0:00:21]} 65. Kh7 {[%emt 0:00:54]} Qh4 {[%emt 0:01:59]} 66. f5 {[%emt 0:00:51]} Qg5 {[%emt 0:01:26]} 67. Qc7+ {[%emt 0:00:44]} Kd3 {[%emt 0:00:26]} 68. Qg7 {[%emt 0:00:48]} Qxf5+ {[%emt 0:01:08]} 69. Qg6 {[%emt 0:00:25]} Ng5+ {[%emt 0:02:14]} 70. Kg7 {[%emt 0:00:07]} Ne6+ {[%emt 0:00:22]} 0-1

[Event "Irish International Open 2019"]
[Site "Dublin"]
[Date "2019.04.19"]
[Round "4.13"]
[White "Schmitz, Manuela"]
[Black "Pulkkinen, Kari"]
[Result "0-1"]
[ECO "D94"]
[WhiteElo "1968"]
[BlackElo "2265"]
[Annotator "NA"]
[PlyCount "88"]
[EventDate "2019.02.28"]
[EventType "swiss"]
[EventCountry "IRL"]
[SourceTitle "playchess.com"]
[Source "ChessBase"]
[SourceQuality "1"]
[TimeControl "5400+30"]

1. d4 {[%emt 0:00:00]} Nf6 {[%emt 0:00:00]} 2. Nf3 {[%emt 0:00:00]} g6 {[%emt 0:00:00]} 3. c4 {[%emt 0:00:25]} c5 {[%emt 0:00:09]} 4. e3 {[%emt 0:00:17]} Bg7 {[%emt 0:00:15]} 5. Be2 {[%emt 0:00:52]} O-O {[%emt 0:00:15]} 6. O-O {[%emt 0:00:14]} cxd4 {[%emt 0:00:29]} 7. exd4 {[%emt 0:01:53]} d5 {[%emt 0:00:13]} 8. Nc3 {[%emt 0:01:05]} Nc6 {[%emt 0:01:56]} 9. h3 {[%emt 0:00:36]} Bf5 {[%emt 0:02:18]} 10. Be3 {[%emt 0:01:41]} dxc4 {[%emt 0:03:06]} 11. Bxc4 {[%emt 0:00:49]} Rc8 {[%emt 0:00:38]} 12. Rc1 {[%emt 0:01:48]} Nb4 {[%emt 0:02:29]} 13. Be2 {[%emt 0:08:31]} Nbd5 {[%emt 0:04:47]} 14. Nxd5 {[%emt 0:01:22]} Nxd5 {[%emt 0:02:12]} 15. Qb3 {[%emt 0:02:48]} Nxe3 {[%emt 0:05:29]} 16. fxe3 {[%emt 0:00:15]} Bh6 {[%emt 0:03:25]} 17. a3 {[%emt 0:07:03]} Qb6 {[%emt 0:02:03]} 18. Qxb6 {[%emt 0:01:06]} Bxe3+ {[%emt 0:00:10]} 19. Kh1 {[%emt 0:00:05]} axb6 {[%emt 0:00:07]} 20. Rc4 {[%emt 0:04:26]} Rxc4 {[%emt 0:04:04]} 21. Bxc4 {[%emt 0:00:06]} Rc8 {[%emt 0:01:42]} 22. b3 {[%emt 0:00:16]} b5 {[%emt 0:05:06]} 23. Bxb5 {[%emt 0:00:47]} Be6 {[%emt 0:00:10]} 24. Re1 {[%emt 0:01:59]} Bf4 {[%emt 0:03:07]} 25. Ba4 {[%emt 0:03:32]} Rc3 {[%emt 0:01:46]} 26. Ne5 {[%emt 0:01:03]} Bxb3 {[%emt 0:01:16]} 27. Bxb3 {[%emt 0:00:19]} Rxb3 {[%emt 0:00:09]} 28. Rf1 {[%emt 0:00:38]} Bxe5 {[%emt 0:00:29]} 29. dxe5 {[%emt 0:00:06]} Rxa3 {[%emt 0:00:10]} 30. Rb1 {[%emt 0:00:06]} Re3 {[%emt 0:00:33]} 31. Rb5 {[%emt 0:00:15]} e6 {[%emt 0:01:58]} 32. Kg1 {[%emt 0:00:08]} Rd3 {[%emt 0:00:32]} 33. Kf2 {[%emt 0:00:51]} Rd5 {[%emt 0:02:23]} 34. Rxb7 {[%emt 0:00:45]} Rxe5 {[%emt 0:00:07]} 35. Ra7 {[%emt 0:00:19]} h5 {[%emt 0:00:44]} 36. Kf3 {[%emt 0:00:26]} Kg7 {[%emt 0:00:16]} 37. Rb7 {[%emt 0:00:18]} Kf6 {[%emt 0:00:54]} 38. Rb4 {[%emt 0:00:29]} Rc5 {[%emt 0:01:01]} 39. h4 {[%emt 0:01:25]} Rc3+ {[%emt 0:01:30]} 40. Kf2 {[%emt 0:00:10]} Kf5 {[%emt 0:00:33]} 41. g3 {[%emt 0:01:02]} e5 {[%emt 0:00:23]} 42. Rb5 {[%emt 0:01:15]} f6 {[%emt 0:00:24]} 43. Ra5 {[%emt 0:00:57]} Rd3 {[%emt 0:01:45]} 44. Rb5 {[%emt 0:02:06]} Kg4 {[%emt 0:01:18]} 0-1

[Event "Irish International Open 2019"]
[Site "Dublin"]
[Date "2019.04.19"]
[Round "4.14"]
[White "Thorarinsson, Pall A."]
[Black "Carroll, Peter"]
[Result "1-0"]
[ECO "D03"]
[WhiteElo "2246"]
[BlackElo "2006"]
[Annotator "NA"]
[PlyCount "57"]
[EventDate "2019.02.28"]
[EventType "swiss"]
[EventCountry "IRL"]
[SourceTitle "playchess.com"]
[Source "ChessBase"]
[SourceQuality "1"]
[TimeControl "5400+30"]

1. d4 {[%emt 0:19:46]} Nf6 {[%emt 0:00:10]} 2. Nf3 {[%emt 0:01:35]} g6 {[%emt 0:00:09]} 3. Bg5 {[%emt 0:00:17]} Bg7 {[%emt 0:00:09]} 4. Nbd2 {[%emt 0:00:41]} d5 {[%emt 0:00:11]} 5. e3 {[%emt 0:00:30]} O-O {[%emt 0:00:07]} 6. Bd3 {[%emt 0:01:03]} Nbd7 {[%emt 0:00:57]} 7. c3 {[%emt 0:03:37]} c5 {[%emt 0:01:21]} 8. O-O {[%emt 0:01:44]} b6 {[%emt 0:00:22]} 9. a4 {[%emt 0:01:55]} Bb7 {[%emt 0:00:29]} 10. a5 {[%emt 0:00:14]} Ne4 {[%emt 0:00:48]} 11. Bh4 {[%emt 0:01:56]} f6 {[%emt 0:07:20]} 12. a6 {[%emt 0:01:48]} Bc6 {[%emt 0:00:32]} 13. Nxe4 {[%emt 0:01:35]} dxe4 {[%emt 0:00:49]} 14. Bc4+ {[%emt 0:00:01]} Kh8 {[%emt 0:00:01]} 15. Nd2 {[%emt 0:00:10]} b5 {[%emt 0:07:11]} 16. d5 {[%emt 0:00:56]} Ne5 {[%emt 0:00:52]} 17. dxc6 {[%emt 0:00:13]} Nxc4 {[%emt 0:00:02]} 18. Nxc4 {[%emt 0:00:23]} bxc4 {[%emt 0:00:34]} 19. Qa4 {[%emt 0:01:17]} Qb6 {[%emt 0:02:17]} 20. Qxc4 {[%emt 0:01:02]} Qxc6 {[%emt 0:00:01]} 21. b4 {[%emt 0:00:55]} g5 {[%emt 0:01:23]} 22. Bg3 {[%emt 0:05:59]} f5 {[%emt 0:00:11]} 23. Ra5 {[%emt 0:02:14]} Qf6 {[%emt 0:09:01]} 24. Bc7 {[%emt 0:10:43]} Qxc3 {[%emt 0:15:14]} 25. Rxc5 {[%emt 0:00:13]} Qxc4 {[%emt 0:00:28]} 26. Rxc4 {[%emt 0:00:05]} Rf6 {[%emt 0:00:27]} 27. b5 {[%emt 0:00:55]} Re6 {[%emt 0:00:34]} 28. Rc5 {[%emt 0:09:28]} Rf8 {[%emt 0:00:41]} 29. Rd1 {[%emt 0:01:27]} 1-0